[Event "10th Cherry Blossom Classic 2023"]
[Site "Dulles"]
[Date "2023.05.28"]
[Round "6.12"]
[White "Senft, Sean"]
[Black "Zhukova, Natalia"]
[Result "1/2-1/2"]
[ECO "D35"]
[WhiteElo "2089"]
[BlackElo "2324"]
[Annotator "TA"]
[PlyCount "201"]
[EventDate "2023.05.24"]
[EventType "swiss"]
[EventCountry "USA"]
[SourceTitle "playchess.com"]
[Source "ChessBase"]
[SourceQuality "1"]
[TimeControl "5400+30"]

{[%evp 18,201,8,19,18,0,0,-14,-5,-6,0,0,0,0,0,0,0,0,0,0,0,-10,-2,-17,-16,-20,-20,-20,-16,-20,-10,-8,-21,-24,-25,-23,-20,-30,-22,-25,-27,-41,-35,-40,0,0,0,-43,-25,-139,-146,-147,-139,-122,-140,-262,-113,-133,-56,-66,-40,-234,-243,-184,-249,-376,-358,-301,0,0,0,0,0,0,0,0,0,0,0,14,16,0,17,0,0,0,0,0,8,0,0,0,0,0,0,0,0,0,0,0,0,0,0,0,0,0,0,0,0,0,0,0,0,0,0,0,0,0,0,0,0,0,0,0,0,0,0,0,0,0,0,0,0,0,0,0,0,0,0,0,0,0,0,0,0,0,0,0,0,0,0,0,0,0,0,0,0,0,0,0,0,0,0,0,0,0,0,0,0,0,0,0,0,0,0,0,0,0,0,0,0,0,0,0,0,0]} 1. d4 {[%emt 0:02:59]} d5 {[%emt 0:00:20]} 2. c4 {[%emt 0:00:19]} e6 {[%emt 0:00:14]} 3. Nc3 {[%emt 0:00:50]} c6 {[%emt 0:00:29]} 4. cxd5 {[%emt 0:00:22]} exd5 {[%emt 0:00:20]} 5. Nf3 {[%emt 0:00:21]} Nf6 {[%emt 0:01:03]} 6. Bg5 {[%emt 0:00:24]} Bd6 {[%emt 0:00:43]} 7. Qc2 {[%emt 0:01:34]} O-O {[%emt 0:00:47]} 8. e3 {[%emt 0:00:27]} Re8 {[%emt 0:01:05]} 9. Bd3 {[%emt 0:01:13]} h6 {[%emt 0:00:30]} 10. Bh4 {[%emt 0:00:35]} Be6 {[%emt 0:00:45] D35: Queen's Gambit Declined: Exchange Variation.} 11. O-O {[%emt 0:01:07]} Nbd7 {[%emt 0:00:26] Against Ne5} 12. Bg3 {[%emt 0:14:58]} Bxg3 {[%emt 0:00:56]} 13. hxg3 {[%emt 0:00:06]} a5 {[%emt 0:02:47] [#]} 14. Rac1 $146 {[%emt 0:04:16]} ({Predecessor:} 14. Rfc1 Qb8 15. Nd2 Qd6 16. Na4 Qc7 17. Rab1 Qd6 18. a3 Rac8 19. Nb3 Kh8 20. Qd2 b6 21. Qc2 {½-½ Kluger,G-Rejfir,J Warsaw Team-ch 1956 (5.5)}) 14... Qb8 {[%emt 0:15:34]} 15. Rfe1 {[%emt 0:04:23]} Qd6 {[%emt 0:20:04]} 16. Qd2 {[%emt 0:09:42]} Bg4 {[%emt 0:03:04]} 17. Nh2 {[%emt 0:02:22]} Bh5 {[%emt 0:02:38]} 18. Qc2 {[%emt 0:03:38]} Nf8 {[%emt 0:04:54]} 19. Nf3 {[%emt 0:02:58]} Bg6 {[%emt 0:06:25]} 20. Ne5 {[%emt 0:01:15][%cal Re5g6]} Bxd3 {[%emt 0:00:07]} 21. Qxd3 {[%emt 0:00:18]} N8d7 {[%emt 0:01:41]} 22. Nxd7 {[%emt 0:01:17]} Qxd7 {[%emt 0:00:21]} 23. Na4 {[%emt 0:02:42]} Qd6 {[%emt 0:03:42]} 24. Nc5 {[%emt 0:05:10]} Re7 {[%emt 0:01:18]} 25. Rc3 {[%emt 0:03:38][%cal Bc1c3,Bc3b3,Bb3b6][%mdl 32]} g6 {[%emt 0:05:21]} 26. Qc2 {[%emt 0:06:36]} h5 {[%emt 0:01:00]} 27. Rb3 {[%emt 0:01:38]} Rb8 {[%emt 0:04:45]} 28. Rb6 {[%emt 0:05:55]} Kg7 {[%emt 0:03:45]} 29. Qb3 {[%emt 0:05:25]} Ng4 {[%emt 0:03:58]} 30. Qd1 $1 {[%emt 0:01:05]} g5 {[%emt 0:09:12]} 31. Qf3 {[%emt 0:01:55]} Kg6 {[%emt 0:03:01]} 32. Rd1 {[%emt 0:06:50]} f5 {[%emt 0:01:00]} (32... Qc7 $5 {[%cal Rc7b6]} 33. Rb3 f5 $11) 33. Nd3 {[%emt 0:00:41]} (33. Rc1 $1 $11 {keeps the balance.} Qd8 34. Rb3) 33... Rbe8 $1 $17 {[%emt 0:01:34]} 34. Ne5+ {[%emt 0:02:15]} Nxe5 {[%emt 0:00:24]} 35. dxe5 {[%emt 0:00:04]} Qc7 {[%emt 0:02:14]} (35... Qxe5 36. Rxd5 (36. Qxd5 Qxd5 37. Rxd5 Ra8 $11) 36... Qe6 37. Rxa5 $16) 36. e4 {[%emt 0:02:07]} (36. Rb3 $17 {was forced.}) 36... dxe4 {[%emt 0:01:31]} (36... Qxb6 $19 {has better winning chances.} 37. Qxf5+ Kh6 38. Qf6+ Kh7 39. Qf5+ Kh8 40. Qf6+ Rg7 41. exd5 Qd8 42. Qxd8 {[%mdl 64] Remove Defender} Rxd8) 37. Qb3 {[%emt 0:00:51]} Qxe5 {[%emt 0:00:08]} (37... Rxe5 $2 38. Rxb7 $18) ({Better is} 37... e3 $1 $17 {[%cal Re3f2] Threatens to win with ...exf2+.} 38. f4 (38. fxe3 $2 Qxe5 39. Rxb7 Rxb7 $17) (38. Rd6+ Qxd6 39. exd6 e2 $17) 38... e2) 38. Rxb7 $15 {[%emt 0:00:43]} e3 {[%emt 0:00:13]} 39. fxe3 {[%emt 0:01:35]} ({Only move:} 39. Rxe7 $1 $15 exf2+ 40. Kxf2 Qxe7 41. Qd3) 39... Rxb7 $1 $19 {[%emt 0:01:01]} (39... Qxg3 40. Rxe7 Rxe7 41. Qg8+ Kf6 42. Qf8+ Rf7 43. Qh8+ (43. Qh6+ Ke7 $11) 43... Kg6 44. e4 fxe4 45. Qg8+ Rg7 46. Qe6+ Kh7 47. Qxe4+ Kh6 48. Rd8 $11) (39... Qxe3+ 40. Qxe3 Rxe3 41. Rdd7 $15) 40. Qxb7 {[%emt 0:00:07]} Qxe3+ $15 {[%emt 0:00:36][%mdl 4096] Endgame KQR-KQR} (40... Qxg3 41. Qxc6+ Kf7 42. Qd7+ Re7 43. Qxf5+ Kg7 44. Qxa5 $16) 41. Kh2 {[%emt 0:01:08] [#]} (41. Kh1 {was the only chance.} h4 42. g4 fxg4 43. Qd7) 41... h4 $1 $19 {[%emt 0:00:13]} 42. gxh4 {[%emt 0:00:57] [#]} gxh4 $2 {[%emt 0:00:25]} ({Black should play} 42... Re4 $1 $19 {[%cal Re4h4]} 43. Rd6+ Kh5 44. Qf7+ (44. Qxc6 $2 Rxh4#) (44. Qh7+ $2 Kg4 $19) 44... Kg4) 43. Qxc6+ $11 {[%emt 0:00:59] The position is equal.} Re6 {[%emt 0:00:00]} 44. Qc7 {[%emt 0:00:34] Wards off Qg3+} f4 {[%emt 0:00:48]} 45. Qc2+ {[%emt 0:00:20]} Kh6 {[%emt 0:00:29]} 46. Rd3 {[%emt 0:00:26]} Qe5 {[%emt 0:00:55]} 47. Rf3 {[%emt 0:00:15]} Rg6 {[%emt 0:00:31]} 48. Qd2 {[%emt 0:01:15]} Rg4 {[%emt 0:00:11]} 49. Kh1 {[%emt 0:00:44]} Qe4 {[%emt 0:00:54]} 50. Qd6+ {[%emt 0:01:55]} Kh5 {[%emt 0:00:12]} 51. Qc5+ {[%emt 0:00:18]} Rg5 {[%emt 0:00:14]} 52. Qf2 {[%emt 0:00:45]} Rg4 {[%emt 0:00:32]} 53. Qc5+ {[%emt 0:00:35]} Rg5 {[%emt 0:00:04]} 54. Qf8 {[%emt 0:00:59]} ({Don't do} 54. Qf2 Rg4 $14) 54... Qb1+ {[%emt 0:01:21]} 55. Kh2 {[%emt 0:00:04]} Qxb2 {[%emt 0:00:04][%csl Gg5][%cal Rb2g2]} 56. Qf7+ {[%emt 0:00:20]} Kh6 {[%emt 0:00:13][%csl Gg5][%cal Rb2g2]} 57. Qe6+ {[%emt 0:00:12]} Rg6 {[%emt 0:00:37][%csl Gg6][%cal Rb2g2]} 58. Qh3 {[%emt 0:00:11]} Qf6 {[%emt 0:00:08]} 59. Qd7 {[%emt 0:01:28]} Rg3 {[%emt 0:01:03]} 60. Qd3 {[%emt 0:01:19]} Qg5 {[%emt 0:00:41]} 61. Qa6+ {[%emt 0:00:11]} Kh5 {[%emt 0:00:25]} 62. Qe2 {[%emt 0:00:06][%csl LRf4,LRg3]} Kh6 {[%emt 0:00:48]} 63. Qa6+ {[%emt 0:00:04]} Kh5 {[%emt 0:00:18]} 64. Qe2 {[%emt 0:00:05][%csl LRf4,LRg3]} Rxf3 {[%emt 0:00:16]} 65. Qxf3+ {[%emt 0:00:04] KQ-KQ} Kh6 {[%emt 0:00:59]} 66. Qc6+ {[%emt 0:00:48]} Qg6 {[%emt 0:00:22]} 67. Qc7 {[%emt 0:00:49]} Qg3+ {[%emt 0:00:14]} 68. Kh1 {[%emt 0:00:07]} Qe1+ {[%emt 0:00:03]} 69. Kh2 {[%emt 0:00:06]} Qg3+ {[%emt 0:00:03]} 70. Kh1 {[%emt 0:00:05]} Qg5 {[%emt 0:01:57]} 71. Qd6+ {[%emt 0:01:21]} Kh5 {[%emt 0:00:27]} 72. Qd1+ {[%emt 0:00:20]} Kg6 {[%emt 0:00:09]} 73. Qd6+ {[%emt 0:01:17]} Qf6 {[%emt 0:00:08]} 74. Qd3+ $1 {[%emt 0:00:24]} Qf5 {[%emt 0:00:15]} 75. Qd6+ {[%emt 0:00:42]} Kh5 {[%emt 0:00:54]} 76. Qd1+ {[%emt 0:00:26]} Kg6 {[%emt 0:00:23]} 77. Qd6+ {[%emt 0:00:11]} Qf6 {[%emt 0:00:09]} 78. Qd3+ {[%emt 0:00:42]} Kh6 {[%emt 0:00:17]} 79. Qd2 {[%emt 0:01:12]} Qe5 {[%emt 0:01:20]} 80. Qd8 {[%emt 0:01:09]} Kh5 {[%emt 0:00:45]} 81. Qf8 {[%emt 0:00:24]} Qe1+ {[%emt 0:00:37]} 82. Kh2 {[%emt 0:00:04]} Qg3+ {[%emt 0:00:05]} 83. Kh1 {[%emt 0:00:07]} Qe1+ {[%emt 0:00:32]} 84. Kh2 {[%emt 0:00:04]} Qe5 {[%emt 0:00:19]} 85. Qf7+ {[%emt 0:00:30]} Kg5 {[%emt 0:00:42]} 86. Qg8+ {[%emt 0:00:11]} Kf5 {[%emt 0:00:37]} 87. Qh7+ {[%emt 0:00:13]} Kg5 {[%emt 0:00:33]} 88. Qg8+ {[%emt 0:00:04]} Kf5 {[%emt 0:00:03]} 89. Qh7+ {[%emt 0:00:07]} Ke6 {[%emt 0:00:27]} 90. Qg8+ {[%emt 0:01:42]} Kd7 {[%emt 0:00:15]} 91. Qf7+ {[%emt 0:00:27]} Kd6 {[%emt 0:00:17]} 92. Qg6+ {[%emt 0:00:27]} (92. Kh3 Qe3+ 93. Kh2 (93. Kxh4 Qg3+ 94. Kh5 Qh2+ 95. Kg6 Qxg2+ 96. Kf5 Qc2+ 97. Kg5 Qc5+ 98. Kg4 Qg1+ 99. Kf5 Qc5+ 100. Kg4 Qg1+ 101. Kf5 Qe3 $15) 93... Qg3+ 94. Kh1 h3 95. Qf8+ Kd5 96. Qf5+ Kc4 97. gxh3 Qe3) 92... Kc5 {[%emt 0:00:12]} 93. Qc2+ {[%emt 0:00:11]} Kb6 {[%emt 0:00:42] White must now prevent ...f3+.} 94. Qg6+ {[%emt 0:00:30]} Kb7 {[%emt 0:00:49]} 95. Qf7+ {[%emt 0:00:37]} Kb6 {[%emt 0:00:12]} 96. Qg6+ {[%emt 0:00:42]} Kc5 {[%emt 0:00:58]} 97. Qc2+ {[%emt 0:00:22]} Kd6 {[%emt 0:00:17] aiming for ...f3+.} 98. Qd3+ {[%emt 0:00:43]} Kc7 {[%emt 0:01:00] ( -> ...f3+)} 99. Qc2+ {[%emt 0:00:31]} Kd6 {[%emt 0:00:43] ...f3+ would be deadly.} 100. Qg6+ {[%emt 0:00:39]} Kc5 {[%emt 0:00:23]} 101. Qc2+ {[%emt 0:00:11] Weighted Error Value: White=0.18 (very precise) /Black=0.16 (very precise)} 1/2-1/2

[Event "10th Cherry Blossom Classic 2023"]
[Site "Dulles"]
[Date "2023.05.28"]
[Round "6.13"]
[White "Kiewra, Keaton"]
[Black "Chabris, Christopher"]
[Result "1/2-1/2"]
[ECO "A25"]
[WhiteElo "2352"]
[BlackElo "2053"]
[Annotator "TA"]
[PlyCount "73"]
[EventDate "2023.05.24"]
[EventType "swiss"]
[EventCountry "USA"]
[SourceTitle "playchess.com"]
[Source "ChessBase"]
[SourceQuality "1"]
[TimeControl "5400+30"]

{[%evp 9,73,0,4,0,0,-12,-12,-12,-12,-12,-11,-13,19,16,16,16,23,13,47,57,72,-132,-148,-261,-195,-199,-198,-183,-175,-260,-253,-256,-170,-257,-218,-240,-195,-194,-133,-140,-69,-72,-71,-81,-71,-73,-51,-52,0,0,0,0,0,0,0,0,0,0,0,0,0,0,0,0,0,0]} 1. c4 {[%emt 0:07:51]} e5 {[%emt 0:00:07]} 2. g3 {[%emt 0:00:19]} Nf6 {[%emt 0:00:11]} 3. Bg2 {[%emt 0:00:06]} Nc6 {[%emt 0:00:17]} 4. Nc3 {[%emt 0:00:19]} Bb4 {[%emt 0:00:37]} 5. Nd5 {[%emt 0:00:18]} O-O {[%emt 0:01:17]} 6. Nxb4 {[%emt 0:00:51] A25: English Opening vs King's Indian with ...Nc6 but without early d3.} Nxb4 {[%emt 0:00:06]} 7. d4 {[%emt 0:00:16]} exd4 {[%emt 0:11:01] next ...c5 is good for Black.} 8. a3 $1 {[%emt 0:00:20]} Nc6 {[%emt 0:00:17]} 9. Nf3 {[%emt 0:00:06]} d5 {[%emt 0:06:02]} 10. Nxd4 {[%emt 0:05:32]} Nxd4 {[%emt 0:10:46]} 11. Qxd4 {[%emt 0:00:07][%cal Rc4d5]} dxc4 {[%emt 0:00:50]} 12. Qxc4 {[%emt 0:00:15] [#]} Be6 $146 {[%emt 0:01:31]} ({Predecessor:} 12... c6 13. O-O Be6 14. Qh4 Qa5 15. Bg5 Nd7 16. b4 Qb5 17. Be4 f5 18. Bd3 Qe5 19. Bc4 Nb6 20. Bf4 Qf6 {½-½ Horvath,R (1872)-Deak,L (1959) HUN-chT2 Szechenyi 1213 2012 (10.5)}) 13. Qc3 {[%emt 0:03:51]} Bd5 {[%emt 0:01:49]} 14. f3 {[%emt 0:00:13]} Re8 {[%emt 0:10:58]} 15. Kf2 $2 {[%emt 0:02:30] [#]} (15. e4 $16) 15... Ng4+ $1 $17 {[%emt 0:17:35][%mdl 512]} 16. Kf1 {[%emt 0:04:55] [#]} (16. fxg4 $17 Bxg2 17. Re1 (17. Kxg2 $2 {too greedy.} Rxe2+ 18. Kh3 Qd5 $19)) (16. Ke1 Bc6) 16... Bc4 $1 {[%emt 0:06:00][%mdl 576] Back Rank} 17. Bf4 {[%emt 0:05:21]} Bxe2+ {[%emt 0:02:27]} 18. Kg1 {[%emt 0:00:06]} c6 {[%emt 0:05:42] ( -> ...Qb6+)} 19. Rc1 {[%emt 0:03:01]} (19. b4 {was worth a try.} Nf6 20. Bg5) 19... Nf6 $19 {[%emt 0:02:00]} 20. Qc5 {[%emt 0:01:53]} b6 {[%emt 0:03:48]} 21. Qf2 {[%emt 0:03:30]} (21. Qd6 $142) 21... Qd3 {[%emt 0:02:51]} 22. Re1 {[%emt 0:02:51] White is weak on the light squares} Rad8 {[%emt 0:03:49]} 23. h4 {[%emt 0:00:31]} Nh5 {[%emt 0:01:18]} (23... Nd5 $19 {White must now prevent ...Nxf4.} 24. Bg5 f6) 24. Bc1 {[%emt 0:00:21]} Bd1 {[%emt 0:02:05]} (24... c5 $17 25. g4 Nf6) 25. Kh2 $15 {[%emt 0:00:29]} Bb3 {[%emt 0:01:20]} (25... Rxe1 {simplifies} 26. Rxe1 c5 27. Qe3 Qxe3 28. Rxe3 Nf6) 26. Rxe8+ {[%emt 0:01:00]} Rxe8 {[%emt 0:00:04]} 27. Re1 {[%emt 0:00:11][%cal Re1e8]} Qd7 {[%emt 0:04:59]} 28. Qd4 {[%emt 0:02:13][%mdl 64] Deflection, Back Rank} Bd5 {[%emt 0:00:31]} (28... Qxd4 $2 29. Rxe8#) (28... Qc8 $15 29. Bh3 Qa8 30. Rxe8+ Qxe8) 29. Qg4 $11 {[%emt 0:00:08] The position is equal.} f5 {[%emt 0:01:16]} 30. Rxe8+ {[%emt 0:00:29]} (30. Qxh5 $2 {is the wrong capture.} Rxe1 31. Qg5 Re2 $19) 30... Qxe8 {[%emt 0:00:02]} 31. Qxf5 {[%emt 0:00:12]} Nxg3 {[%emt 0:00:53][%mdl 64] Decoy} 32. Kxg3 {[%emt 0:05:16]} Qe1+ {[%emt 0:00:01]} 33. Kh2 $1 {[%emt 0:00:07] And now Qf4 would win.} Qxc1 {[%emt 0:00:10]} 34. Qc8+ {[%emt 0:00:25]} Kf7 {[%emt 0:00:05] Strongly threatening ...Qf4+.} 35. Qf5+ {[%emt 0:01:27]} Kg8 {[%emt 0:01:34]} 36. Qc8+ {[%emt 0:00:40]} Kf7 {[%emt 0:00:05] ...Qf4+ is the strong threat.} 37. Qf5+ {[%emt 0:08:03] And White is the lucky defender. A fantastic game!   Weighted Error Value: White=0.26 (precise) /Black=0.25 (precise)} 1/2-1/2

[Event "10th Cherry Blossom Classic 2023"]
[Site "Dulles"]
[Date "2023.05.28"]
[Round "6.14"]
[White "Prabhu, Naveen"]
[Black "Slate, Kent"]
[Result "1/2-1/2"]
[ECO "B31"]
[WhiteElo "2138"]
[BlackElo "1989"]
[Annotator "TA"]
[PlyCount "140"]
[EventDate "2023.05.24"]
[EventType "swiss"]
[EventCountry "USA"]
[SourceTitle "playchess.com"]
[Source "ChessBase"]
[SourceQuality "1"]
[TimeControl "5400+30"]

{[%evp 23,140,7,6,2,7,10,6,10,22,19,12,0,0,0,8,13,8,17,8,0,31,29,28,8,35,35,50,45,57,54,62,52,50,50,35,33,39,31,33,0,0,3,7,-12,-8,-20,223,204,223,204,238,170,154,177,169,113,145,126,126,126,126,126,126,126,137,87,90,65,65,67,67,68,81,51,59,48,45,36,59,59,59,58,58,8,8,8,8,8,8,8,8,8,8,8,8,8,8,8,8,8,8,8,8,8,8,0,8,0,8,0,8,8,8,8,8,8,8,8,8]} 1. e4 {[%emt 0:00:22]} c5 {[%emt 0:00:29]} 2. Nf3 {[%emt 0:00:06]} Nc6 {[%emt 0:00:04]} 3. Bb5 {[%emt 0:00:05]} g6 {[%emt 0:00:05]} 4. Bxc6 {[%emt 0:00:05]} dxc6 {[%emt 0:00:09]} 5. d3 {[%emt 0:00:08]} Bg7 {[%emt 0:00:21]} 6. h3 {[%emt 0:00:07]} Nf6 {[%emt 0:00:14]} 7. O-O {[%emt 0:00:55]} O-O {[%emt 0:00:14]} 8. Nc3 {[%emt 0:00:23]} b6 {[%emt 0:03:27]} 9. Be3 {[%emt 0:01:25]} e5 {[%emt 0:02:36]} 10. Qd2 {[%emt 0:04:26]} Qd6 {[%emt 0:02:28]} 11. Bh6 {[%emt 0:04:50]} Nh5 {[%emt 0:02:57]} 12. Bxg7 {[%emt 0:03:33]} Nxg7 {[%emt 0:01:36]} 13. Ne2 {[%emt 0:02:21] B31: Sicilian: 2...Nc6 3 Bb5 g6.} f6 {[%emt 0:01:31] [#]} 14. b3 $146 {[%emt 0:05:06]} ({Predecessor:} 14. Rad1 a5 15. Nh2 g5 16. Ng4 Bxg4 17. hxg4 h5 18. gxh5 Nxh5 19. g3 Qe6 20. Kg2 {½-½ Vogt,L (2484)-Shirov,A (2705) Mainz Ordix op rapid 2005 (9)}) 14... a5 {[%emt 0:03:20]} 15. a4 {[%emt 0:01:40]} Ne6 {[%emt 0:02:19]} 16. Nh2 {[%emt 0:01:22]} Ra7 {[%emt 0:05:51]} 17. Rae1 {[%emt 0:18:35]} Re7 {[%emt 0:09:29]} 18. Kh1 {[%emt 0:07:41]} Kg7 {[%emt 0:02:38]} 19. f4 {[%emt 0:08:40]} exf4 {[%emt 0:04:53]} 20. Nxf4 {[%emt 0:00:05]} Nd4 {[%emt 0:06:16]} 21. g4 {[%emt 0:08:02]} Ne6 {[%emt 0:02:35]} 22. Nxe6+ {[%emt 0:01:56]} Bxe6 {[%emt 0:00:31]} 23. Rf2 {[%emt 0:04:49]} (23. Kg2 {feels hotter.} Ree8 24. Rf3 Qe5 25. Ref1) 23... Qe5 {[%emt 0:13:10]} (23... h5 {looks sharper.} 24. gxh5 Rh8 25. hxg6 Qe5) 24. Rg1 {[%emt 0:01:15]} Kh8 {[%emt 0:09:36]} 25. Nf3 {[%emt 0:00:34]} Qd6 {[%emt 0:00:19]} 26. Qc3 {[%emt 0:01:42]} Qf4 {[%emt 0:01:25]} 27. Rgf1 {[%emt 0:02:03] [#] Threatens to win with Ng1.} Ref7 {[%emt 0:00:38]} 28. Nh2 {[%emt 0:03:30]} Qg5 {[%emt 0:01:51]} 29. Rf4 {[%emt 0:02:10]} Kg8 {[%emt 0:01:07]} 30. Qe1 {[%emt 0:01:00]} Qe5 {[%emt 0:00:53]} 31. Qe3 {[%emt 0:01:07]} Qc3 {[%emt 0:02:30]} 32. R4f2 {[%emt 0:00:28]} b5 {[%emt 0:00:39]} 33. Qf4 {[%emt 0:01:55]} c4 {[%emt 0:01:28]} 34. Qd6 {[%emt 0:02:02]} cxb3 $2 {[%emt 0:02:25]} (34... Bd7 $11) 35. Qxe6 $18 {[%emt 0:01:14]} bxc2 {[%emt 0:00:24]} 36. Rc1 {[%emt 0:01:00]} (36. Rxf6 $2 Qxf6 37. Rxf6 c1=Q+ 38. Rf1 Qb2 39. axb5 cxb5 $19) 36... bxa4 {[%emt 0:00:46]} 37. Rfxc2 {[%emt 0:01:38]} ({Don't do} 37. Rcxc2 Qxd3 38. Kg2 (38. Rxc6 Qb3 $18) (38. Qxc6 Qxh3 39. Rc3 Qh4 $16) 38... Qd7) 37... Qxd3 {[%emt 0:00:30]} 38. Rc3 {[%emt 0:00:23]} Qb5 {[%emt 0:02:46]} 39. Qxc6 {[%emt 0:00:47]} (39. Nf3 $18) 39... Rb8 {[%emt 0:02:05]} 40. Qxb5 {[%emt 0:04:10]} Rxb5 {[%emt 0:00:06]} 41. Ra3 {[%emt 0:00:05]} Rb4 {[%emt 0:00:50]} 42. Rca1 {[%emt 0:00:07]} Rxe4 {[%emt 0:01:12]} 43. Rxa4 {[%emt 0:00:07]} Re3 {[%emt 0:01:39]} 44. R4a3 {[%emt 0:00:31]} (44. Kg2 $142) 44... Rfe7 $16 {[%emt 0:00:27]} 45. Rxe3 {[%emt 0:00:13]} Rxe3 {[%emt 0:00:06][%mdl 4096] Endgame KRN-KR} 46. Kg2 {[%emt 0:00:03] Hoping for Nf3.} Re5 {[%emt 0:00:24]} 47. Nf3 {[%emt 0:00:22]} Rd5 {[%emt 0:00:11]} 48. Ra4 {[%emt 0:01:04]} h5 {[%emt 0:01:32]} 49. gxh5 {[%emt 0:01:03]} Rxh5 {[%emt 0:00:07]} 50. Nd2 {[%emt 0:00:39]} Rb5 {[%emt 0:01:17]} 51. Ra2 {[%emt 0:02:24]} g5 {[%emt 0:01:52]} 52. Nc4 {[%emt 0:01:57]} Kg7 {[%emt 0:00:19]} 53. Rxa5 {[%emt 0:00:34]} ({Better is} 53. Nxa5 $14 g4 54. hxg4) 53... Rxa5 $11 {[%emt 0:05:10] The position is equal.} 54. Nxa5 $14 {[%emt 0:00:01] KN-KPP} f5 {[%emt 0:00:17]} 55. Nc4 {[%emt 0:01:40]} Kg6 {[%emt 0:00:57]} 56. Ne3 {[%emt 0:01:08]} Kf6 $1 {[%emt 0:00:03]} 57. Kf2 {[%emt 0:01:17]} Kg6 {[%emt 0:00:11]} 58. Ng2 {[%emt 0:01:24]} Kf6 {[%emt 0:00:39]} 59. Ke3 {[%emt 0:00:16]} Ke5 {[%emt 0:00:56]} 60. Ne1 {[%emt 0:00:08]} Kf6 {[%emt 0:00:18]} 61. Kd4 {[%emt 0:00:26]} Kg6 {[%emt 0:01:10]} 62. Ng2 {[%emt 0:01:34]} Kh5 {[%emt 0:00:49]} 63. Ke3 {[%emt 0:00:24]} Kg6 {[%emt 0:00:15]} 64. Ne1 {[%emt 0:00:19]} Kh5 {[%emt 0:00:45]} 65. Ng2 {[%emt 0:00:06]} Kg6 {[%emt 0:00:30]} 66. Kd4 {[%emt 0:00:30]} Kh5 {[%emt 0:00:18]} 67. Ke5 {[%emt 0:00:46]} f4 {[%emt 0:00:35]} 68. Ke4 {[%emt 0:00:49] [#] Kf3 would kill now.} (68. Kf5 $5) 68... g4 {[%emt 0:00:09]} 69. Nxf4+ {[%emt 0:00:16]} Kh4 {[%emt 0:00:13]} 70. hxg4 {[%emt 0:00:04]} Kxg4 {[%emt 0:00:07] White really could win this.   Weighted Error Value: White=0.12 (very precise) /Black=0.15 (very precise)} 1/2-1/2

[Event "10th Cherry Blossom Classic 2023"]
[Site "Dulles"]
[Date "2023.05.28"]
[Round "6.15"]
[White "Altman, Joshua"]
[Black "Kanli, Alperen"]
[Result "1-0"]
[ECO "D38"]
[WhiteElo "2120"]
[BlackElo "2111"]
[Annotator "TA"]
[PlyCount "79"]
[EventDate "2023.05.24"]
[EventType "swiss"]
[EventCountry "USA"]
[SourceTitle "playchess.com"]
[Source "ChessBase"]
[SourceQuality "1"]
[TimeControl "5400+30"]

{[%evp 18,79,27,31,44,22,17,27,24,30,128,83,128,129,145,149,154,144,145,134,179,177,190,192,182,189,228,147,168,176,259,264,359,331,509,508,620,591,649,650,610,434,566,507,475,188,185,220,200,195,236,222,227,219,244,216,216,217,241,229,320,316,617,609]} 1. d4 {[%emt 0:00:03]} Nf6 {[%emt 0:00:04]} 2. c4 {[%emt 0:00:06]} e6 {[%emt 0:00:06]} 3. Nf3 {[%emt 0:00:04]} d5 {[%emt 0:00:06]} 4. cxd5 {[%emt 0:00:19]} exd5 {[%emt 0:00:22]} 5. Nc3 {[%emt 0:00:06]} Bb4 {[%emt 0:00:07]} 6. Bg5 {[%emt 0:00:34]} h6 {[%emt 0:02:05]} 7. Bh4 {[%emt 0:00:24]} g5 {[%emt 0:01:28]} 8. Bg3 {[%emt 0:00:02]} Ne4 {[%emt 0:00:02]} 9. Nd2 {[%emt 0:02:17]} Nxg3 {[%emt 0:04:44]} 10. hxg3 {[%emt 0:00:05]} c5 {[%emt 0:00:13] D38: Queen's Gambit Declined: Ragozin Defence (4 Nf3 Bb4).} 11. a3 {[%emt 0:19:05]} Bxc3 {[%emt 0:04:47]} 12. bxc3 {[%emt 0:00:02]} Nc6 {[%emt 0:03:28] White has an edge.} 13. e3 {[%emt 0:03:31] [#]} c4 $146 {[%emt 0:02:10]} (13... Qd6 $11) ({Predecessor:} 13... Bf5 14. Qb3 Qd6 15. dxc5 {½-½ Timoscenko,G (2530)-Horvath,P (2463) AUT-chT2M 0304 2003 (2.1)}) 14. e4 $1 $16 {[%emt 0:16:27]} Be6 {[%emt 0:00:15]} 15. exd5 {[%emt 0:15:17]} Bxd5 {[%emt 0:00:09]} 16. Nxc4 {[%emt 0:01:48][%cal Bd2c4,Bc4e3,Be3d5,Bd5b4,Bb4d3][%mdl 32]} (16. Bxc4 Bxg2 17. Rh2 Bd5 $16) 16... Qc7 {[%emt 0:02:23]} 17. Ne3 {[%emt 0:04:21]} O-O-O {[%emt 0:00:40]} 18. Be2 {[%emt 0:02:08]} Be4 {[%emt 0:02:16]} 19. O-O {[%emt 0:01:42]} f5 {[%emt 0:00:55]} 20. Bf3 {[%emt 0:02:45]} Bxf3 {[%emt 0:04:15]} 21. Qxf3 {[%emt 0:00:04]} Rdf8 {[%emt 0:02:27]} 22. Nd5 {[%emt 0:05:46]} (22. Nxf5 $6 Qd7) 22... Qd7 {[%emt 0:02:50] [#]} 23. Nb4 $1 {[%emt 0:00:39]} Rf6 {[%emt 0:00:02]} (23... Kb8 $142 24. Rfe1 Rf6) 24. d5 $18 {[%emt 0:09:22]} Ne7 {[%emt 0:01:09]} 25. c4 {[%emt 0:03:24][%cal Bc3c4,Bc4c5,Bc5c6][%mdl 32]} a5 {[%emt 0:00:01]} (25... h5 $142 26. Qe3 h4) 26. Nd3 {[%emt 0:02:00]} h5 {[%emt 0:00:02]} 27. Rab1 {[%emt 0:02:27]} Qd6 {[%emt 0:02:54] Repels Nc5} 28. Qe3 {[%emt 0:00:41]} h4 {[%emt 0:03:44]} 29. c5 {[%emt 0:03:42]} Qd8 {[%emt 0:00:46]} 30. c6 {[%emt 0:01:12] White threatens Qa7 and mate.} b6 {[%emt 0:07:58]} 31. Qxb6 $2 {[%emt 0:04:30]} ({Weaker is} 31. Rxb6 Nxd5 32. c7 Qxc7 $11) ({Less strong is} 31. Qxg5 Rfh6 $18) (31. Ne5 hxg3 32. Rfd1 (32. Qxg3 $2 Rfh6 $19) (32. Rxb6 $2 Rh1+ {[%mdl 64] Skewer, Decoy, Clearance} 33. Kxh1 Qh8+ 34. Kg1 Qh2#) 32... Nxd5 33. Rxd5 (33. Qxg5 Qf8 $15) (33. Qxg3 $2 Rfh6 $19) 33... Rh1+ {[%mdl 64] Decoy} 34. Kxh1 Qh8+ 35. Kg1 Qh2+ 36. Kf1 Qh1+ 37. Ke2 Qxb1 38. fxg3 (38. Qxg5 $2 Qe4+ 39. Qe3 Qxd5 $19)) 31... Qxb6 {[%emt 0:00:01]} 32. Rxb6 {[%emt 0:00:01] Rfb1 is the strong threat.} Nxd5 {[%emt 0:00:01] [#]} 33. Ra6 {[%emt 0:00:34] Hoping for Ra8+.} Nc7 {[%emt 0:00:01] Wards off Ra8+} 34. Rxa5 {[%emt 0:00:22]} Rxc6 {[%emt 0:00:02]} 35. Rxf5 {[%emt 0:01:14]} Rc3 {[%emt 0:00:28]} 36. Ne5 {[%emt 0:00:46] aiming for Nf7.} hxg3 {[%emt 0:00:32]} 37. fxg3 {[%emt 0:01:10]} ({Resist} 37. Rxg5 $6 gxf2+ 38. Kxf2 Ne6 $16) 37... Ne6 {[%emt 0:02:12]} 38. Nf7 {[%emt 0:00:00][%csl LRg5,LRh8]} Rg8 {[%emt 0:00:33]} 39. Nd6+ {[%emt 0:00:00]} Kd7 $2 {[%emt 0:00:14]} (39... Kd8 40. Re1 Nc7) 40. Ne4 {[%emt 0:00:02] Weighted Error Value: White=0.34/Black=0.56} 1-0